[Event "Late-Titled-Tuesday-Blitz-October-24-2023"]
[Site "Chess.com"]
[Date "2023.10.24"]
[Round "2"]
[White "AlleyOoper"]
[Black "pooh2012"]
[Result "0-1"]
[WhiteElo "2673"]
[BlackElo "2460"]
[TimeControl "180+1"]
[EndTime "14:18:50 PDT"]
[Termination "pooh2012 won by checkmate"]

1. d4 {[%clk 0:03:00.9]} 1... Nf6 {[%clk 0:02:49.5]} 2. Nc3 {[%clk 0:03:00.2]}
2... d5 {[%clk 0:02:45.7]} 3. Bf4 {[%clk 0:03:00.6]} 3... a6 {[%clk 0:02:44.1]}
4. e3 {[%clk 0:03:00.6]} 4... Bf5 {[%clk 0:02:42.2]} 5. f3 {[%clk 0:02:56.7]}
5... h5 {[%clk 0:02:40.9]} 6. Bd3 {[%clk 0:02:55.8]} 6... Bxd3 {[%clk 0:02:39]}
7. Qxd3 {[%clk 0:02:56.7]} 7... e6 {[%clk 0:02:38.5]} 8. e4 {[%clk 0:02:56.5]}
8... Bb4 {[%clk 0:02:18.5]} 9. Ne2 {[%clk 0:02:56]} 9... Nbd7 {[%clk 0:01:55.8]}
10. Bg5 {[%clk 0:02:54.2]} 10... Be7 {[%clk 0:01:45.7]} 11. e5 {[%clk
0:02:49.4]} 11... Ng8 {[%clk 0:01:44.9]} 12. Be3 {[%clk 0:02:44.6]} 12... Nh6
{[%clk 0:01:43.3]} 13. Bxh6 {[%clk 0:02:42.9]} 13... Rxh6 {[%clk 0:01:42.3]} 14.
f4 {[%clk 0:02:43.1]} 14... c5 {[%clk 0:01:38.3]} 15. O-O {[%clk 0:02:29.9]}
15... cxd4 {[%clk 0:01:35]} 16. Nxd4 {[%clk 0:02:28.9]} 16... Nc5 {[%clk
0:01:24.6]} 17. Qh3 {[%clk 0:02:18.5]} 17... Qb6 {[%clk 0:01:22]} 18. Kh1 {[%clk
0:02:08.7]} 18... Qxb2 {[%clk 0:00:53.3]} 19. Nce2 {[%clk 0:01:47.2]} 19... Qb6
{[%clk 0:00:43.1]} 20. f5 {[%clk 0:01:45.5]} 20... Qc7 {[%clk 0:00:36.9]} 21.
fxe6 {[%clk 0:01:24.3]} 21... Nxe6 {[%clk 0:00:36]} 22. Nxe6 {[%clk 0:01:22.9]}
22... fxe6 {[%clk 0:00:30.9]} 23. Nf4 {[%clk 0:01:22.2]} 23... Qd7 {[%clk
0:00:19]} 24. c4 {[%clk 0:01:18.3]} 24... O-O-O {[%clk 0:00:14.4]} 25. cxd5
{[%clk 0:01:17]} 25... exd5 {[%clk 0:00:15]} 26. e6 {[%clk 0:01:15.7]} 26... Qd6
{[%clk 0:00:14.5]} 27. Rad1 {[%clk 0:01:08.3]} 27... d4 {[%clk 0:00:14.4]} 28.
Rfe1 {[%clk 0:01:02.5]} 28... g5 {[%clk 0:00:13.6]} 29. Nxh5 {[%clk 0:00:46.9]}
29... Rdh8 {[%clk 0:00:09.5]} 30. g4 {[%clk 0:00:47]} 30... Qd5+ {[%clk
0:00:08.2]} 31. Qg2 {[%clk 0:00:46]} 31... Qxg2+ {[%clk 0:00:05.3]} 32. Kxg2
{[%clk 0:00:46.9]} 32... Bc5 {[%clk 0:00:04.6]} 33. Re5 {[%clk 0:00:43.9]} 33...
b6 {[%clk 0:00:04.3]} 34. Rxg5 {[%clk 0:00:42.2]} 34... Rxe6 {[%clk 0:00:03.9]}
35. Nf4 {[%clk 0:00:39.6]} 35... Re3 {[%clk 0:00:03.7]} 36. Nd3 {[%clk
0:00:36.7]} 36... Re2+ {[%clk 0:00:03.6]} 37. Kf3 {[%clk 0:00:36.9]} 37... Rhxh2
{[%clk 0:00:03.3]} 38. Nxc5 {[%clk 0:00:23.4]} 38... Re3+ {[%clk 0:00:03]} 39.
Kf4 {[%clk 0:00:20.6]} 39... Rf2# {[%clk 0:00:03.5]} 0-1

[Event "Late-Titled-Tuesday-Blitz-October-24-2023"]
[Site "Chess.com"]
[Date "2023.10.24"]
[Round "2"]
[White "johnathan113"]
[Black "Apocalyps999"]
[Result "0-1"]
[WhiteElo "2633"]
[BlackElo "2316"]
[TimeControl "180+1"]
[EndTime "14:18:50 PDT"]
[Termination "Apocalyps999 won by checkmate"]

1. e4 {[%clk 0:03:00.9]} 1... e5 {[%clk 0:02:56.4]} 2. Nf3 {[%clk 0:02:59.2]}
2... Nc6 {[%clk 0:02:56.7]} 3. d4 {[%clk 0:02:59.2]} 3... exd4 {[%clk
0:02:56.8]} 4. Nxd4 {[%clk 0:03:00.1]} 4... Bc5 {[%clk 0:02:56.8]} 5. Nb3 {[%clk
0:02:59.4]} 5... Bb6 {[%clk 0:02:57]} 6. Nc3 {[%clk 0:03:00]} 6... Nf6 {[%clk
0:02:57]} 7. Qe2 {[%clk 0:03:00.3]} 7... O-O {[%clk 0:02:57.2]} 8. Be3 {[%clk
0:02:47.2]} 8... Re8 {[%clk 0:02:55.9]} 9. f3 {[%clk 0:02:45.3]} 9... d5 {[%clk
0:02:55.3]} 10. O-O-O {[%clk 0:02:41.5]} 10... d4 {[%clk 0:02:55]} 11. Na4
{[%clk 0:01:04.2]} 11... Nxe4 {[%clk 0:02:00.7]} 12. Nxb6 {[%clk 0:01:03.5]}
12... axb6 {[%clk 0:02:00.1]} 13. Nxd4 {[%clk 0:01:03.8]} 13... Nd6 {[%clk
0:01:49.8]} 14. Nxc6 {[%clk 0:00:39]} 14... bxc6 {[%clk 0:01:50.7]} 15. Kb1
{[%clk 0:00:32.3]} 15... Qe7 {[%clk 0:01:50.6]} 16. Re1 {[%clk 0:00:32.2]} 16...
Be6 {[%clk 0:01:43.9]} 17. a3 {[%clk 0:00:22.1]} 17... Nc4 {[%clk 0:01:35.1]}
18. Bd4 {[%clk 0:00:18.4]} 18... Qd6 {[%clk 0:01:08.2]} 19. Qf2 {[%clk
0:00:17.7]} 19... Nxa3+ {[%clk 0:00:39.5]} 20. bxa3 {[%clk 0:00:18]} 20... Qxa3
{[%clk 0:00:40.4]} 21. Bb2 {[%clk 0:00:14.9]} 21... Qb4 {[%clk 0:00:39.9]} 22.
Re4 {[%clk 0:00:09.2]} 22... Qa5 {[%clk 0:00:32.1]} 23. Qg3 {[%clk 0:00:03.2]}
23... f6 {[%clk 0:00:27.6]} 24. Bd3 {[%clk 0:00:02.9]} 24... Qd2 {[%clk
0:00:23]} 25. Rhe1 {[%clk 0:00:02.3]} 25... Ba2+ {[%clk 0:00:22.8]} 26. Ka1
{[%clk 0:00:02.5]} 26... Rxe4 {[%clk 0:00:16.9]} 27. fxe4 {[%clk 0:00:02.7]}
27... Bb3+ {[%clk 0:00:13.4]} 28. Kb1 {[%clk 0:00:03.6]} 28... Ba2+ {[%clk
0:00:13.9]} 29. Ka1 {[%clk 0:00:04.1]} 29... Qa5 {[%clk 0:00:12.5]} 30. e5
{[%clk 0:00:02.5]} 30... Bb3+ {[%clk 0:00:09.4]} 31. Kb1 {[%clk 0:00:03.4]}
31... Ba2+ {[%clk 0:00:07.3]} 32. Kc1 {[%clk 0:00:03.7]} 32... Bf7 {[%clk
0:00:06.2]} 33. e6 {[%clk 0:00:03.5]} 33... g6 {[%clk 0:00:07.1]} 34. exf7+
{[%clk 0:00:03.4]} 34... Kf8 {[%clk 0:00:07.4]} 35. Qxc7 {[%clk 0:00:03.9]}
35... Qxe1# {[%clk 0:00:07.2]} 0-1

[Event "Late-Titled-Tuesday-Blitz-October-24-2023"]
[Site "Chess.com"]
[Date "2023.10.24"]
[Round "2"]
[White "leschebaza"]
[Black "Andrej2004"]
[Result "0-1"]
[WhiteElo "2308"]
[BlackElo "2520"]
[TimeControl "180+1"]
[EndTime "14:18:50 PDT"]
[Termination "Andrej2004 won by checkmate"]

1. Nf3 {[%clk 0:03:00]} 1... b6 {[%clk 0:03:00.2]} 2. c4 {[%clk 0:03:00.9]} 2...
Bb7 {[%clk 0:03:00.8]} 3. e3 {[%clk 0:03:01.4]} 3... g6 {[%clk 0:03:00.6]} 4.
Nc3 {[%clk 0:03:01.7]} 4... Bg7 {[%clk 0:03:01]} 5. b3 {[%clk 0:03:01.8]} 5...
Nf6 {[%clk 0:03:01.4]} 6. Bb2 {[%clk 0:03:01.8]} 6... O-O {[%clk 0:03:01.7]} 7.
d4 {[%clk 0:03:01.2]} 7... d5 {[%clk 0:02:59.9]} 8. Be2 {[%clk 0:03:01]} 8... c5
{[%clk 0:02:54.8]} 9. dxc5 {[%clk 0:02:50]} 9... bxc5 {[%clk 0:02:54.2]} 10. O-O
{[%clk 0:02:45.4]} 10... dxc4 {[%clk 0:02:39]} 11. Bxc4 {[%clk 0:02:46.3]} 11...
Nc6 {[%clk 0:02:36.7]} 12. Qe2 {[%clk 0:02:40.2]} 12... Qc7 {[%clk 0:02:27.8]}
13. Nd1 {[%clk 0:02:36.2]} 13... Rad8 {[%clk 0:02:23.5]} 14. Nc3 {[%clk
0:02:32.8]} 14... Ng4 {[%clk 0:02:14.9]} 15. h3 {[%clk 0:02:31.1]} 15... Nge5
{[%clk 0:02:14.4]} 16. Nb5 {[%clk 0:02:24.4]} 16... Qb8 {[%clk 0:02:12.6]} 17.
Nxe5 {[%clk 0:02:17.8]} 17... Nxe5 {[%clk 0:02:13.5]} 18. Bxe5 {[%clk
0:02:13.4]} 18... Bxe5 {[%clk 0:02:10.5]} 19. Rad1 {[%clk 0:02:14.3]} 19... a6
{[%clk 0:02:10.5]} 20. Na3 {[%clk 0:02:09.8]} 20... Qc7 {[%clk 0:01:59.9]} 21.
f4 {[%clk 0:02:06.2]} 21... Bf6 {[%clk 0:01:53.3]} 22. Nc2 {[%clk 0:01:52.1]}
22... Qc6 {[%clk 0:01:49.3]} 23. Ne1 {[%clk 0:01:50.5]} 23... Rxd1 {[%clk
0:01:41.3]} 24. Qxd1 {[%clk 0:01:51.4]} 24... Qe4 {[%clk 0:01:40.3]} 25. Qd3
{[%clk 0:01:37.9]} 25... Qc6 {[%clk 0:01:29.2]} 26. Nf3 {[%clk 0:01:36.6]} 26...
e6 {[%clk 0:01:29.5]} 27. Rd1 {[%clk 0:01:35.7]} 27... Rd8 {[%clk 0:01:27.9]}
28. Qe2 {[%clk 0:01:23.5]} 28... Rxd1+ {[%clk 0:01:25.7]} 29. Qxd1 {[%clk
0:01:24.4]} 29... Qe4 {[%clk 0:01:24.2]} 30. Qd3 {[%clk 0:01:23.6]} 30... Qc6
{[%clk 0:01:17]} 31. a4 {[%clk 0:01:18.7]} 31... a5 {[%clk 0:01:14.6]} 32. Bb5
{[%clk 0:01:08.8]} 32... Qb6 {[%clk 0:01:04.2]} 33. Nd2 {[%clk 0:01:04.2]} 33...
Kg7 {[%clk 0:00:41.7]} 34. Nc4 {[%clk 0:00:55.6]} 34... Qc7 {[%clk 0:00:40.8]}
35. g4 {[%clk 0:00:50.8]} 35... Ba8 {[%clk 0:00:39.6]} 36. g5 {[%clk 0:00:50.3]}
36... Be7 {[%clk 0:00:39.2]} 37. Qc3+ {[%clk 0:00:49]} 37... f6 {[%clk
0:00:39.4]} 38. gxf6+ {[%clk 0:00:44.5]} 38... Bxf6 {[%clk 0:00:40.3]} 39. Qxa5
{[%clk 0:00:45.2]} 39... Qb7 {[%clk 0:00:40.4]} 40. Kf2 {[%clk 0:00:32.1]} 40...
Qg2+ {[%clk 0:00:37.2]} 41. Ke1 {[%clk 0:00:32.1]} 41... Bf3 {[%clk 0:00:33.3]}
42. Qc7+ {[%clk 0:00:15.4]} 42... Kh6 {[%clk 0:00:31.6]} 43. Nd2 {[%clk
0:00:11.3]} 43... Bh4# {[%clk 0:00:28.9]} 0-1

[Event "Late-Titled-Tuesday-Blitz-October-24-2023"]
[Site "Chess.com"]
[Date "2023.10.24"]
[Round "2"]
[White "Payyappat"]
[Black "Nikita_Klepikov"]
[Result "1-0"]
[WhiteElo "2518"]
[BlackElo "2295"]
[TimeControl "180+1"]
[EndTime "14:18:51 PDT"]
[Termination "Payyappat won on time"]

1. e4 {[%clk 0:02:59.6]} 1... c5 {[%clk 0:03:00.2]} 2. Nf3 {[%clk 0:02:58.9]}
2... Nc6 {[%clk 0:03:00.8]} 3. d4 {[%clk 0:02:59.8]} 3... cxd4 {[%clk
0:03:01.7]} 4. Nxd4 {[%clk 0:02:59.6]} 4... g6 {[%clk 0:03:02.4]} 5. Nc3 {[%clk
0:03:00.4]} 5... Bg7 {[%clk 0:03:02.5]} 6. Be3 {[%clk 0:03:00.9]} 6... Nf6
{[%clk 0:03:02.7]} 7. f4 {[%clk 0:03:01]} 7... d6 {[%clk 0:02:57.8]} 8. Be2
{[%clk 0:03:00.6]} 8... O-O {[%clk 0:02:57.5]} 9. O-O {[%clk 0:03:00.5]} 9...
Bd7 {[%clk 0:02:55]} 10. Kh1 {[%clk 0:02:58.9]} 10... a6 {[%clk 0:02:53.2]} 11.
Bf3 {[%clk 0:02:53.6]} 11... Re8 {[%clk 0:02:53.6]} 12. Qe2 {[%clk 0:02:50]}
12... Nxd4 {[%clk 0:02:53.6]} 13. Bxd4 {[%clk 0:02:50.1]} 13... Bc6 {[%clk
0:02:54.5]} 14. Rad1 {[%clk 0:02:49.5]} 14... Qa5 {[%clk 0:02:53.9]} 15. e5
{[%clk 0:02:48.2]} 15... Nd7 {[%clk 0:02:20.4]} 16. e6 {[%clk 0:02:42.6]} 16...
Nf6 {[%clk 0:02:10.9]} 17. exf7+ {[%clk 0:02:37]} 17... Kxf7 {[%clk 0:02:11.8]}
18. Rde1 {[%clk 0:02:35.2]} 18... Qf5 {[%clk 0:02:04.8]} 19. Qc4+ {[%clk
0:02:18.8]} 19... d5 {[%clk 0:01:58.9]} 20. Qb3 {[%clk 0:02:18.2]} 20... Rad8
{[%clk 0:01:53.3]} 21. Re5 {[%clk 0:02:14.2]} 21... Qd7 {[%clk 0:01:49.2]} 22.
Re2 {[%clk 0:02:01.2]} 22... e6 {[%clk 0:01:45.4]} 23. Rfe1 {[%clk 0:01:59.3]}
23... b5 {[%clk 0:01:43.9]} 24. Qb4 {[%clk 0:01:52.5]} 24... Bf8 {[%clk
0:01:42.5]} 25. Qa5 {[%clk 0:01:49.3]} 25... b4 {[%clk 0:01:38.3]} 26. Nb1
{[%clk 0:01:43.4]} 26... Bb5 {[%clk 0:01:37]} 27. Re3 {[%clk 0:01:36.5]} 27...
Rc8 {[%clk 0:01:29.8]} 28. c3 {[%clk 0:01:26.1]} 28... Bd6 {[%clk 0:01:12.1]}
29. Bxf6 {[%clk 0:01:08.4]} 29... Kxf6 {[%clk 0:01:11.5]} 30. Bg4 {[%clk
0:01:08.7]} 30... Kg7 {[%clk 0:00:13]} 31. Bxe6 {[%clk 0:01:05.5]} 31... Qc7
{[%clk 0:00:04.4]} 32. Qxc7+ {[%clk 0:01:01.5]} 32... Rxc7 {[%clk 0:00:05.1]}
33. Bxd5 {[%clk 0:00:50.5]} 33... Rxe3 {[%clk 0:00:05.2]} 34. Rxe3 {[%clk
0:00:51.1]} 34... Bxf4 {[%clk 0:00:06]} 35. Rf3 {[%clk 0:00:50.4]} 35... Be5
{[%clk 0:00:05.9]} 36. g3 {[%clk 0:00:44.5]} 36... Rd7 {[%clk 0:00:05.7]} 37. c4
{[%clk 0:00:43.8]} 37... Bxb2 {[%clk 0:00:03.5]} 38. Rb3 {[%clk 0:00:36.4]}
38... Bc3 {[%clk 0:00:01.8]} 39. cxb5 {[%clk 0:00:33.7]} 39... Rxd5 {[%clk
0:00:01.5]} 40. b6 {[%clk 0:00:27.2]} 40... Rd1+ {[%clk 0:00:01.2]} 41. Kg2
{[%clk 0:00:26]} 41... Rd6 {[%clk 0:00:01.4]} 42. b7 {[%clk 0:00:25]} 1-0

[Event "Late-Titled-Tuesday-Blitz-October-24-2023"]
[Site "Chess.com"]
[Date "2023.10.24"]
[Round "2"]
[White "Meri-Arabidze"]
[Black "HansOnTwitch"]
[Result "0-1"]
[WhiteElo "2628"]
[BlackElo "3033"]
[TimeControl "180+1"]
[EndTime "14:18:54 PDT"]
[Termination "HansOnTwitch won by resignation"]

1. Nf3 {[%clk 0:02:56.3]} 1... d5 {[%clk 0:02:59.1]} 2. b3 {[%clk 0:02:56.2]}
2... c5 {[%clk 0:02:58.1]} 3. e3 {[%clk 0:02:56.2]} 3... f6 {[%clk 0:02:58.8]}
4. d4 {[%clk 0:02:55.8]} 4... Nc6 {[%clk 0:02:57.5]} 5. Bb2 {[%clk 0:02:53.9]}
5... cxd4 {[%clk 0:02:57]} 6. Nxd4 {[%clk 0:02:51]} 6... e5 {[%clk 0:02:56.7]}
7. Nxc6 {[%clk 0:02:51.1]} 7... bxc6 {[%clk 0:02:57.6]} 8. c4 {[%clk 0:02:48.1]}
8... Bb4+ {[%clk 0:02:54.6]} 9. Nd2 {[%clk 0:02:48.2]} 9... Ne7 {[%clk
0:02:51.7]} 10. a3 {[%clk 0:02:47.9]} 10... Bd6 {[%clk 0:02:50.9]} 11. Be2
{[%clk 0:02:45.6]} 11... a5 {[%clk 0:02:49.5]} 12. O-O {[%clk 0:02:45.1]} 12...
O-O {[%clk 0:02:48.9]} 13. Qc2 {[%clk 0:02:37.7]} 13... Be6 {[%clk 0:02:47.2]}
14. Rfd1 {[%clk 0:02:35.9]} 14... Qb8 {[%clk 0:02:45.3]} 15. e4 {[%clk
0:02:26.1]} 15... d4 {[%clk 0:02:44.4]} 16. c5 {[%clk 0:02:26.2]} 16... Bc7
{[%clk 0:02:44.3]} 17. Bc4 {[%clk 0:02:26.1]} 17... Bxc4 {[%clk 0:02:41.9]} 18.
Nxc4 {[%clk 0:02:26.7]} 18... Kh8 {[%clk 0:02:34.5]} 19. Bc1 {[%clk 0:02:18.1]}
19... Qb5 {[%clk 0:02:32.1]} 20. Bd2 {[%clk 0:02:08.1]} 20... Ng6 {[%clk
0:02:23.4]} 21. b4 {[%clk 0:02:00.6]} 21... axb4 {[%clk 0:02:23.1]} 22. axb4
{[%clk 0:02:01.3]} 22... Rfd8 {[%clk 0:02:17.9]} 23. g3 {[%clk 0:01:53.3]} 23...
Nf8 {[%clk 0:02:17]} 24. Qb3 {[%clk 0:01:40.3]} 24... h6 {[%clk 0:02:13.1]} 25.
Ra2 {[%clk 0:01:30.1]} 25... Rxa2 {[%clk 0:02:10.3]} 26. Qxa2 {[%clk 0:01:31]}
26... d3 {[%clk 0:02:02.9]} 27. Bc3 {[%clk 0:01:24.4]} 27... Ne6 {[%clk
0:01:53.2]} 28. Nxe5 {[%clk 0:01:18]} 28... Bxe5 {[%clk 0:01:50.8]} 29. Bxe5
{[%clk 0:01:17.5]} 29... Ng5 {[%clk 0:01:26.9]} 30. Bd6 {[%clk 0:00:59.9]} 30...
d2 {[%clk 0:01:24.6]} 31. Rxd2 {[%clk 0:00:51.3]} 31... Nf3+ {[%clk 0:01:22.8]}
32. Kg2 {[%clk 0:00:51.8]} 32... Nxd2 {[%clk 0:01:23.4]} 33. Qxd2 {[%clk
0:00:52.7]} 33... Qc4 {[%clk 0:01:22.9]} 34. Qe3 {[%clk 0:00:23.8]} 34... Re8
{[%clk 0:01:21]} 35. e5 {[%clk 0:00:22.7]} 35... fxe5 {[%clk 0:01:18.2]} 36. h4
{[%clk 0:00:14.3]} 36... Qd5+ {[%clk 0:01:14.6]} 37. Kg1 {[%clk 0:00:13.1]}
37... e4 {[%clk 0:01:13.4]} 38. Qf4 {[%clk 0:00:12]} 38... Kg8 {[%clk
0:01:12.9]} 39. Qe3 {[%clk 0:00:09.4]} 39... Ra8 {[%clk 0:01:12.2]} 40. Kh2
{[%clk 0:00:08.7]} 40... Qd3 {[%clk 0:01:05.8]} 41. Qf4 {[%clk 0:00:07.5]} 41...
Qf3 {[%clk 0:01:06.4]} 42. Qxf3 {[%clk 0:00:04.8]} 42... exf3 {[%clk 0:01:07.3]}
43. g4 {[%clk 0:00:05.6]} 43... Ra4 {[%clk 0:01:06.7]} 44. Kg3 {[%clk
0:00:05.9]} 44... Rxb4 {[%clk 0:01:07.2]} 45. Kxf3 {[%clk 0:00:06.6]} 45... h5
{[%clk 0:01:07.6]} 46. gxh5 {[%clk 0:00:03]} 46... Rxh4 {[%clk 0:01:08.1]} 47.
Kg3 {[%clk 0:00:02.8]} 47... Rxh5 {[%clk 0:01:08.1]} 48. f4 {[%clk 0:00:03.5]}
48... Rd5 {[%clk 0:01:09]} 49. Kg4 {[%clk 0:00:03.8]} 49... g6 {[%clk
0:01:09.7]} 50. Kf3 {[%clk 0:00:03.9]} 50... Kf7 {[%clk 0:01:10.2]} 51. Ke4
{[%clk 0:00:04.8]} 51... Ke6 {[%clk 0:01:11.1]} 52. Kf3 {[%clk 0:00:04.5]} 52...
Kf5 {[%clk 0:01:11.1]} 53. Ke3 {[%clk 0:00:05.2]} 53... Rd1 {[%clk 0:01:11.1]}
54. Kf3 {[%clk 0:00:05.6]} 54... Rd3+ {[%clk 0:01:10.8]} 55. Ke2 {[%clk
0:00:05.6]} 55... Ke4 {[%clk 0:01:11.7]} 56. Be5 {[%clk 0:00:05.5]} 56... Rf3
{[%clk 0:01:10.8]} 57. Bd6 {[%clk 0:00:04.4]} 57... Rxf4 {[%clk 0:01:11.1]} 0-1

[Event "Late-Titled-Tuesday-Blitz-October-24-2023"]
[Site "Chess.com"]
[Date "2023.10.24"]
[Round "2"]
[White "dropstoneDP"]
[Black "lukas_111111"]
[Result "1-0"]
[WhiteElo "3100"]
[BlackElo "2634"]
[TimeControl "180+1"]
[EndTime "14:18:58 PDT"]
[Termination "dropstoneDP won on time"]

1. e4 {[%clk 0:03:00.9]} 1... b6 {[%clk 0:00:05.2]} 2. d4 {[%clk 0:02:59.8]}
2... Bb7 {[%clk 0:00:05]} 3. Bd3 {[%clk 0:03:00.3]} 3... d6 {[%clk 0:00:05.2]}
4. Nf3 {[%clk 0:03:00.4]} 4... Nd7 {[%clk 0:00:05.9]} 5. a4 {[%clk 0:03:01]}
5... e5 {[%clk 0:00:06.5]} 6. dxe5 {[%clk 0:03:01.5]} 6... dxe5 {[%clk 0:00:06]}
7. a5 {[%clk 0:03:01.7]} 7... a6 {[%clk 0:00:05.7]} 8. axb6 {[%clk 0:03:01.7]}
8... cxb6 {[%clk 0:00:06.1]} 9. O-O {[%clk 0:03:01.6]} 9... Ngf6 {[%clk
0:00:06.4]} 10. Nc3 {[%clk 0:03:02.2]} 10... Be7 {[%clk 0:00:06.8]} 11. Bc4
{[%clk 0:03:00.4]} 11... O-O {[%clk 0:00:06.7]} 12. Re1 {[%clk 0:02:57.6]} 12...
Qc7 {[%clk 0:00:06.9]} 13. Ba2 {[%clk 0:02:56.7]} 13... b5 {[%clk 0:00:07]} 14.
Bg5 {[%clk 0:02:56.6]} 14... h6 {[%clk 0:00:06.7]} 15. Bxf6 {[%clk 0:02:56.4]}
15... Nxf6 {[%clk 0:00:06.3]} 16. Nd5 {[%clk 0:02:57]} 16... Bxd5 {[%clk
0:00:05.5]} 17. Bxd5 {[%clk 0:02:55.5]} 17... Rfd8 {[%clk 0:00:05.4]} 18. c3
{[%clk 0:02:51.7]} 18... Nxd5 {[%clk 0:00:05]} 19. exd5 {[%clk 0:02:52.6]} 19...
Bf6 {[%clk 0:00:05.6]} 20. Qb3 {[%clk 0:02:50]} 20... Qc5 {[%clk 0:00:05.4]} 21.
Nxe5 {[%clk 0:02:47.5]} 21... Qxd5 {[%clk 0:00:04.9]} 22. Qxd5 {[%clk 0:02:47]}
22... Rxd5 {[%clk 0:00:05.8]} 23. Nf3 {[%clk 0:02:47.2]} 23... b4 {[%clk
0:00:05.8]} 24. cxb4 {[%clk 0:02:40.8]} 24... Bxb2 {[%clk 0:00:06.7]} 25. Rab1
{[%clk 0:02:40.6]} 25... Bc3 {[%clk 0:00:06.8]} 26. Rec1 {[%clk 0:02:40.8]}
26... Bf6 {[%clk 0:00:06.7]} 27. Kf1 {[%clk 0:02:38.6]} 27... a5 {[%clk
0:00:07]} 28. b5 {[%clk 0:02:37.7]} 28... a4 {[%clk 0:00:07.1]} 29. b6 {[%clk
0:02:37.8]} 29... Rdd8 {[%clk 0:00:05.8]} 30. b7 {[%clk 0:02:37.5]} 30... Rab8
{[%clk 0:00:06]} 31. Rc6 {[%clk 0:02:13.8]} 31... a3 {[%clk 0:00:06]} 32. Ra6
{[%clk 0:02:14.4]} 32... Bb2 {[%clk 0:00:05.6]} 33. Ra7 {[%clk 0:02:14.4]} 33...
Rd7 {[%clk 0:00:04.7]} 34. Ne1 {[%clk 0:02:09.8]} 34... Rdxb7 {[%clk 0:00:04.5]}
35. Ra4 {[%clk 0:02:10.4]} 35... g5 {[%clk 0:00:03.6]} 36. Nc2 {[%clk
0:02:10.1]} 36... Rb3 {[%clk 0:00:03.6]} 37. g4 {[%clk 0:02:02.8]} 37... Kg7
{[%clk 0:00:03.7]} 38. Ra6 {[%clk 0:02:01.5]} 38... Rc3 {[%clk 0:00:03.9]} 39.
Nxa3 {[%clk 0:01:58.6]} 39... Rc1+ {[%clk 0:00:04.2]} 40. Rxc1 {[%clk
0:01:58.3]} 40... Bxc1 {[%clk 0:00:05.1]} 41. Nc4 {[%clk 0:01:58.6]} 41... Bf4
{[%clk 0:00:06]} 42. h3 {[%clk 0:01:55.8]} 42... Rb4 {[%clk 0:00:06.3]} 43. Rc6
{[%clk 0:01:56.2]} 43... Ra4 {[%clk 0:00:06.1]} 44. Kg2 {[%clk 0:01:55]} 44...
Ra2 {[%clk 0:00:06.1]} 45. Kf3 {[%clk 0:01:53.2]} 45... Rc2 {[%clk 0:00:05.9]}
46. h4 {[%clk 0:01:53.1]} 46... Rc3+ {[%clk 0:00:05.6]} 47. Ke4 {[%clk
0:01:53.6]} 47... Bc1 {[%clk 0:00:04.9]} 48. h5 {[%clk 0:01:51.7]} 48... Bf4
{[%clk 0:00:04.5]} 49. Rc8 {[%clk 0:01:41]} 49... Rc2 {[%clk 0:00:04.4]} 50. Kf3
{[%clk 0:01:40.3]} 50... Rc3+ {[%clk 0:00:04.5]} 51. Kg2 {[%clk 0:01:40.6]}
51... Rc2 {[%clk 0:00:04.8]} 52. Nd6 {[%clk 0:01:27.9]} 52... Rxc8 {[%clk
0:00:04.4]} 53. Nxc8 {[%clk 0:01:28.8]} 53... f5 {[%clk 0:00:04.6]} 54. gxf5
{[%clk 0:01:17.4]} 54... Kf6 {[%clk 0:00:04.1]} 55. Kf3 {[%clk 0:01:17.9]} 55...
Kxf5 {[%clk 0:00:03.6]} 56. Ne7+ {[%clk 0:01:18.4]} 56... Ke6 {[%clk 0:00:03]}
57. Ng8 {[%clk 0:01:17.9]} 57... Bc1 {[%clk 0:00:02.7]} 58. Nxh6 {[%clk
0:01:18.1]} 1-0